[Event "Schack-SM 2024: Veteran-SM 65+"]
[Site "Fortnox Arena, Hejaregatan 5, Vaxjo, Sweden"]
[Date "2024.06.29"]
[Round "1.5"]
[White "Wedin, Svante"]
[Black "Lagerborg, Krister"]
[Result "1-0"]
[TimeControl "90 minutes for 40 moves + 30 minutes for the rest of the game + 30 seconds per move from move one."]
[WhiteElo "1907"]
[BlackElo "2091"]

1. e4 {[%clk 01:30:57]} {[%emt 00:00:03]} c5 {[%clk 01:30:55]} {[%emt
00:00:06]} 2. Nf3 {[%clk 01:31:22]} {[%emt 00:00:05]} d6 {[%clk 01:31:20]}
{[%emt 00:00:04]} 3. d4 {[%clk 01:31:46]} {[%emt 00:00:07]} cxd4 {[%clk
01:31:45]} {[%emt 00:00:04]} 4. Nxd4 {[%clk 01:32:12]} {[%emt 00:00:05]} Nf6
{[%clk 01:32:08]} {[%emt 00:00:06]} 5. Nc3 {[%clk 01:32:36]} {[%emt 00:00:06]}
a6 {[%clk 01:32:33]} {[%emt 00:00:05]} 6. Be3 {[%clk 01:29:03]} {[%emt
00:04:04]} e5 {[%clk 01:32:31]} {[%emt 00:00:32]} 7. Nb3 {[%clk 01:28:27]}
{[%emt 00:01:05]} Be6 {[%clk 01:32:36]} {[%emt 00:00:26]} 8. Nd5 {[%clk
01:26:05]} {[%emt 00:02:52]} Bxd5 {[%clk 01:31:12]} {[%emt 00:01:53]} 9. exd5
{[%clk 01:26:27]} {[%emt 00:00:09]} Nbd7 {[%clk 01:30:32]} {[%emt 00:01:09]} 10.
a4 {[%clk 01:22:37]} {[%emt 00:04:21]} Rc8 {[%clk 01:27:42]} {[%emt 00:03:20]}
11. a5 {[%clk 01:21:33]} {[%emt 00:01:33]} Be7 {[%clk 01:26:03]} {[%emt
00:02:10]} 12. Be2 {[%clk 01:20:56]} {[%emt 00:01:06]} O-O {[%clk 01:24:25]}
{[%emt 00:02:08]} 13. O-O {[%clk 01:18:33]} {[%emt 00:02:54]} Ne4 {[%clk
01:18:57]} {[%emt 00:05:58]} 14. f3 {[%clk 01:11:34]} {[%emt 00:07:28]} Nec5
{[%clk 01:17:11]} {[%emt 00:02:16]} 15. Nxc5 {[%clk 01:11:23]} {[%emt
00:00:41]} dxc5 {[%clk 01:13:47]} {[%emt 00:03:54]} 16. Qd2 {[%clk 00:53:24]}
{[%emt 00:18:30]} Bd6 {[%clk 01:10:48]} {[%emt 00:03:28]} 17. Bg5 {[%clk
00:48:50]} {[%emt 00:05:04]} f6 {[%clk 01:09:12]} {[%emt 00:02:05]} 18. Bh4
{[%clk 00:49:05]} {[%emt 00:00:15]} Qe8 {[%clk 01:05:04]} {[%emt 00:04:39]} 19.
c4 {[%clk 00:42:11]} {[%emt 00:07:23]} f5 {[%clk 01:02:13]} {[%emt 00:03:22]}
20. Bg3 {[%clk 00:37:49]} {[%emt 00:04:52]} Qe7 {[%clk 01:00:17]} {[%emt
00:02:25]} 21. Bd3 {[%clk 00:36:26]} {[%emt 00:01:54]} Rce8 {[%clk 00:56:31]}
{[%emt 00:04:16]} 22. Qc2 {[%clk 00:34:13]} {[%emt 00:02:43]} Qf6 {[%clk
00:55:49]} {[%emt 00:01:12]} 23. Rae1 {[%clk 00:33:09]} {[%emt 00:01:33]} e4
{[%clk 00:51:38]} {[%emt 00:04:41]} 24. fxe4 {[%clk 00:31:51]} {[%emt
00:01:49]} Bxg3 {[%clk 00:51:49]} {[%emt 00:00:19]} 25. hxg3 {[%clk 00:32:20]}
Qd4+ {[%clk 00:51:54]} {[%emt 00:00:25]} 26. Kh2 {[%clk 00:31:37]} {[%emt
00:01:14]} Ne5 {[%clk 00:44:33]} {[%emt 00:07:50]} 27. Be2 {[%clk 00:31:34]}
{[%emt 00:00:33]} fxe4 {[%clk 00:40:24]} {[%emt 00:04:40]} 28. Qc3 {[%clk
00:29:13]} {[%emt 00:02:52]} Rf6 {[%clk 00:34:49]} {[%emt 00:06:03]} 29. Rxf6
{[%clk 00:24:58]} {[%emt 00:04:46]} gxf6 {[%clk 00:35:13]} {[%emt 00:00:05]} 30.
Rf1 {[%clk 00:25:16]} {[%emt 00:00:13]} Kg7 {[%clk 00:34:38]} {[%emt 00:01:05]}
31. Rf4 {[%clk 00:25:09]} {[%emt 00:00:36]} Ng6 {[%clk 00:29:17]} {[%emt
00:05:51]} 32. Rf1 {[%clk 00:22:34]} {[%emt 00:03:05]} Re5 {[%clk 00:26:30]}
{[%emt 00:03:17]} 33. Qb3 {[%clk 00:17:59]} {[%emt 00:05:05]} Re7 {[%clk
00:22:38]} {[%emt 00:04:23]} 34. Qb6 {[%clk 00:17:38]} {[%emt 00:00:52]} e3
{[%clk 00:18:20]} {[%emt 00:04:47]} 35. Rd1 {[%clk 00:16:20]} {[%emt 00:01:48]}
Qe5 {[%clk 00:16:07]} {[%emt 00:02:44]} 36. d6 {[%clk 00:13:21]} {[%emt
00:03:28]} Rd7 {[%clk 00:15:09]} {[%emt 00:01:28]} 37. Rd5 {[%clk 00:12:36]}
{[%emt 00:01:15]} Qe6 {[%clk 00:13:57]} {[%emt 00:01:40]} 38. Qxc5 {[%clk
00:12:35]} {[%emt 00:00:33]} Ne5 {[%clk 00:13:35]} {[%emt 00:00:52]} 39. Qd4
{[%clk 00:12:19]} {[%emt 00:00:45]} Nc6 {[%clk 00:12:45]} {[%emt 00:01:22]} 40.
Qg4+ {[%clk 00:10:35]} {[%emt 00:02:12]} Qxg4 {[%clk 00:13:00]} {[%emt
00:00:16]} 41. Bxg4 {[%clk 00:10:52]} {[%emt 00:00:13]} Rd8 {[%clk 00:13:14]}
{[%emt 00:00:16]} 42. Kg1 {[%clk 00:10:27]} {[%emt 00:00:55]} Ne5 {[%clk
00:12:06]} {[%emt 00:01:38]} 43. Be2 {[%clk 00:10:39]} {[%emt 00:00:18]} Kf7
{[%clk 00:12:05]} {[%emt 00:00:32]} 44. c5 {[%clk 00:08:58]} {[%emt 00:02:10]}
Ke6 {[%clk 00:11:50]} {[%emt 00:00:45]} 45. Rd4 {[%clk 00:07:47]} {[%emt
00:01:41]} f5 {[%clk 00:11:03]} {[%emt 00:01:17]} 46. Bf3 {[%clk 00:03:39]}
{[%emt 00:04:37]} Nxf3+ {[%clk 00:06:11]} {[%emt 00:05:23]} 47. gxf3 {[%clk
00:04:05]} {[%emt 00:00:02]} Ke5 {[%clk 00:06:33]} {[%emt 00:00:10]} 48. Rh4
{[%clk 00:29:53]} {[%emt 00:04:41]} Rd7 {[%clk 00:33:12]} {[%emt 00:03:53]} 49.
Kf1 {[%clk 00:29:50]} {[%emt 00:00:33]} Rg7 {[%clk 00:33:05]} {[%emt 00:00:36]}
50. Ke2 {[%clk 00:27:15]} {[%emt 00:03:05]} Rxg3 {[%clk 00:32:31]} {[%emt
00:01:04]} 51. Kxe3 {[%clk 00:27:31]} {[%emt 00:00:14]} Rg7 {[%clk 00:32:11]}
{[%emt 00:00:50]} 52. Rh5 {[%clk 00:24:42]} {[%emt 00:03:18]} Ke6 {[%clk
00:28:19]} {[%emt 00:04:23]} 53. Kf4 {[%clk 00:21:49]} {[%emt 00:03:23]} Rf7
{[%clk 00:27:33]} {[%emt 00:01:16]} 54. b4 {[%clk 00:21:54]} {[%emt 00:00:25]}
Kd7 {[%clk 00:27:16]} {[%emt 00:00:47]} 55. Rxf5 {[%clk 00:22:05]} {[%emt
00:00:18]} Rg7 {[%clk 00:27:40]} {[%emt 00:00:07]} 56. Ke5 {[%clk 00:21:29]}
{[%emt 00:01:06]} Kc6 {[%clk 00:27:44]} {[%emt 00:00:27]} 57. Ke6 {[%clk
00:20:56]} {[%emt 00:01:02]} Rg1 {[%clk 00:28:04]} {[%emt 00:00:10]} 58. Rf7
{[%clk 00:18:57]} {[%emt 00:02:29]} 1-0